[Event "*** Titled Tuesday Blitz"]
[Site "Chess.com"]
[Date "2020.04.07"]
[Round "3"]
[White "Sam_ChessMood"]
[Black "Harut-1998"]
[Result "1-0"]
[WhiteElo "2919"]
[BlackElo "2650"]
[TimeControl "180+1"]
[EndTime "13:30:41 PDT"]
[Termination "Sam_ChessMood won by resignation"]

1. e4 {[%clk 0:03:00.2]} 1... e5 {[%clk 0:02:55.3]} 2. Nf3 {[%clk 0:02:59.9]}
2... Nc6 {[%clk 0:02:55]} 3. Bb5 {[%clk 0:02:59.9]} 3... a6 {[%clk 0:02:54.7]}
4. Ba4 {[%clk 0:03:00.2]} 4... Nf6 {[%clk 0:02:54.6]} 5. O-O {[%clk 0:03:00.4]}
5... Be7 {[%clk 0:02:53.3]} 6. Re1 {[%clk 0:03:00.7]} 6... b5 {[%clk 0:02:52.7]}
7. Bb3 {[%clk 0:03:01.1]} 7... d6 {[%clk 0:02:53.6]} 8. c3 {[%clk 0:03:00.7]}
8... O-O {[%clk 0:02:51.7]} 9. h3 {[%clk 0:03:00.4]} 9... Bb7 {[%clk 0:02:42.5]}
10. d4 {[%clk 0:03:00.5]} 10... Re8 {[%clk 0:02:42.4]} 11. Nbd2 {[%clk
0:03:00.7]} 11... Bf8 {[%clk 0:02:42.3]} 12. a4 {[%clk 0:02:51.7]} 12... Na5
{[%clk 0:02:18.1]} 13. Bc2 {[%clk 0:02:46.2]} 13... c5 {[%clk 0:02:14.5]} 14. d5
{[%clk 0:02:44.7]} 14... Qc7 {[%clk 0:02:05.2]} 15. b4 {[%clk 0:02:29.7]} 15...
cxb4 {[%clk 0:02:03.6]} 16. cxb4 {[%clk 0:02:30.6]} 16... Nc4 {[%clk 0:02:00.5]}
17. Nxc4 {[%clk 0:02:20.3]} 17... Qxc4 {[%clk 0:01:50.8]} 18. Rb1 {[%clk
0:02:00.5]} 18... Qc7 {[%clk 0:01:26.4]} 19. axb5 {[%clk 0:01:38.1]} 19... axb5
{[%clk 0:01:25.3]} 20. Bd3 {[%clk 0:01:38.4]} 20... Reb8 {[%clk 0:01:24.8]} 21.
Qe2 {[%clk 0:01:22.6]} 21... Qd7 {[%clk 0:01:01.7]} 22. Bxb5 {[%clk 0:01:17.2]}
22... Qd8 {[%clk 0:00:58.7]} 23. Bd3 {[%clk 0:01:15.6]} 23... Bc8 {[%clk
0:00:57.6]} 24. b5 {[%clk 0:01:12.9]} 24... Nd7 {[%clk 0:00:56]} 25. Be3 {[%clk
0:01:13.1]} 25... Nb6 {[%clk 0:00:52.1]} 26. Rec1 {[%clk 0:01:11.5]} 26... Bd7
{[%clk 0:00:52.3]} 27. Nd2 {[%clk 0:01:05.9]} 27... Be7 {[%clk 0:00:51.8]} 28.
Nc4 {[%clk 0:01:01.2]} 28... Nxc4 {[%clk 0:00:51.5]} 29. Bxc4 {[%clk 0:01:01.5]}
29... Bg5 {[%clk 0:00:51.2]} 30. Qd2 {[%clk 0:00:55.4]} 30... Bxe3 {[%clk
0:00:50.4]} 31. Qxe3 {[%clk 0:00:56.1]} 31... Rb6 {[%clk 0:00:49.8]} 32. Rb2
{[%clk 0:00:53.5]} 32... Rc8 {[%clk 0:00:46.4]} 33. Bd3 {[%clk 0:00:50.5]} 33...
Rcb8 {[%clk 0:00:38.7]} 34. Rcb1 {[%clk 0:00:48.9]} 34... h6 {[%clk 0:00:38.4]}
35. Kh2 {[%clk 0:00:49.1]} 35... Qe8 {[%clk 0:00:36.8]} 36. Rb4 {[%clk
0:00:47.1]} 36... Qd8 {[%clk 0:00:20.9]} 37. R1b2 {[%clk 0:00:47.2]} 37... Qc7
{[%clk 0:00:20.9]} 38. Rc2 {[%clk 0:00:43.1]} 38... Qd8 {[%clk 0:00:20.8]} 39.
Be2 {[%clk 0:00:38.1]} 39... Qe8 {[%clk 0:00:20.8]} 40. Rcb2 {[%clk 0:00:37.8]}
40... Kh7 {[%clk 0:00:19.3]} 41. Bg4 {[%clk 0:00:36.2]} 41... Rxb5 {[%clk
0:00:14.2]} 42. Rxb5 {[%clk 0:00:29.2]} 42... Rxb5 {[%clk 0:00:15.1]} 43. Rxb5
{[%clk 0:00:29.2]} 43... Bxb5 {[%clk 0:00:15.6]} 44. Qb6 {[%clk 0:00:29.1]}
44... Bd3 {[%clk 0:00:12.2]} 45. Qxd6 {[%clk 0:00:22.9]} 45... Bxe4 {[%clk
0:00:11.9]} 46. Qc5 {[%clk 0:00:21.2]} 46... f5 {[%clk 0:00:10.7]} 47. Be2
{[%clk 0:00:20.8]} 47... Qg6 {[%clk 0:00:06.6]} 48. f3 {[%clk 0:00:20.7]} 48...
f4 {[%clk 0:00:04.8]} 49. fxe4 {[%clk 0:00:19.5]} 49... Qg3+ {[%clk 0:00:04.8]}
50. Kg1 {[%clk 0:00:19.7]} 50... Qe1+ {[%clk 0:00:04.6]} 51. Bf1 {[%clk
0:00:20]} 51... Qd2 {[%clk 0:00:05.1]} 52. d6 {[%clk 0:00:17.6]} 52... g5 {[%clk
0:00:03.9]} 53. Qxe5 {[%clk 0:00:15.8]} 53... Qe3+ {[%clk 0:00:03.4]} 54. Kh1
{[%clk 0:00:16.3]} 54... Qe1 {[%clk 0:00:03.6]} 55. Qb5 {[%clk 0:00:13.8]} 55...
Qxe4 {[%clk 0:00:02.6]} 56. Qd3 {[%clk 0:00:12.8]} 56... Qxd3 {[%clk 0:00:02.6]}
57. Bxd3+ {[%clk 0:00:13.2]} 57... Kg7 {[%clk 0:00:03.5]} 58. d7 {[%clk
0:00:13.6]} 1-0

[Event "*** Titled Tuesday Blitz"]
[Site "Chess.com"]
[Date "2020.04.07"]
[Round "3"]
[White "nihalsarin"]
[Black "artooon"]
[Result "1-0"]
[WhiteElo "3083"]
[BlackElo "2715"]
[TimeControl "180+1"]
[EndTime "13:30:45 PDT"]
[Termination "nihalsarin won by checkmate"]

1. Nf3 {[%clk 0:03:00.9]} 1... Nf6 {[%clk 0:03:00]} 2. c4 {[%clk 0:03:00.1]}
2... e6 {[%clk 0:03:00.1]} 3. g3 {[%clk 0:02:58.8]} 3... d5 {[%clk 0:03:00.4]}
4. Bg2 {[%clk 0:02:59.2]} 4... Be7 {[%clk 0:03:00.9]} 5. O-O {[%clk 0:02:59.2]}
5... O-O {[%clk 0:03:01.5]} 6. b3 {[%clk 0:02:59.7]} 6... d4 {[%clk 0:03:00.9]}
7. e3 {[%clk 0:02:56.3]} 7... c5 {[%clk 0:03:01.2]} 8. Bb2 {[%clk 0:02:56.3]}
8... Nc6 {[%clk 0:03:01.7]} 9. exd4 {[%clk 0:02:56.6]} 9... cxd4 {[%clk
0:03:02.6]} 10. Re1 {[%clk 0:02:57]} 10... a5 {[%clk 0:02:54.5]} 11. Na3 {[%clk
0:02:54.5]} 11... Re8 {[%clk 0:02:47.3]} 12. Nb5 {[%clk 0:02:53.8]} 12... Bc5
{[%clk 0:02:47.6]} 13. Ne5 {[%clk 0:02:47.2]} 13... Bd7 {[%clk 0:02:44]} 14.
Nxd7 {[%clk 0:02:09.9]} 14... Qxd7 {[%clk 0:02:44.9]} 15. d3 {[%clk 0:02:10]}
15... e5 {[%clk 0:02:41.9]} 16. a3 {[%clk 0:02:10.3]} 16... Re7 {[%clk
0:02:36.1]} 17. Bc1 {[%clk 0:02:10]} 17... h6 {[%clk 0:02:31.5]} 18. Bd2 {[%clk
0:02:10.1]} 18... Rae8 {[%clk 0:02:28.3]} 19. f3 {[%clk 0:01:57.8]} 19... Qf5
{[%clk 0:01:46.6]} 20. Qe2 {[%clk 0:01:50.2]} 20... Qg6 {[%clk 0:01:34.2]} 21.
Kh1 {[%clk 0:01:47.1]} 21... h5 {[%clk 0:01:31.8]} 22. Rab1 {[%clk 0:01:43.7]}
22... h4 {[%clk 0:01:30.9]} 23. b4 {[%clk 0:01:28.8]} 23... axb4 {[%clk
0:01:31.8]} 24. axb4 {[%clk 0:01:29.7]} 24... Ba7 {[%clk 0:01:19.7]} 25. gxh4
{[%clk 0:01:01]} 25... Nh5 {[%clk 0:01:15.3]} 26. Qe4 {[%clk 0:01:00.9]} 26...
f5 {[%clk 0:01:09.8]} 27. Qd5+ {[%clk 0:00:51.5]} 27... Kh7 {[%clk 0:01:10]} 28.
Nxa7 {[%clk 0:00:30.2]} 28... Nxa7 {[%clk 0:01:10.9]} 29. Bg5 {[%clk 0:00:30.6]}
29... Re6 {[%clk 0:01:02.1]} 30. Qxb7 {[%clk 0:00:25.7]} 30... Nc6 {[%clk
0:00:58]} 31. b5 {[%clk 0:00:25.9]} 31... Nd8 {[%clk 0:00:54.5]} 32. Qc7 {[%clk
0:00:23]} 32... Nf7 {[%clk 0:00:53.6]} 33. Bd2 {[%clk 0:00:14.3]} 33... Nf4
{[%clk 0:00:46.1]} 34. Bxf4 {[%clk 0:00:13.5]} 34... exf4 {[%clk 0:00:47]} 35.
Rxe6 {[%clk 0:00:14.1]} 35... Rxe6 {[%clk 0:00:47.9]} 36. Qxf4 {[%clk
0:00:14.6]} 36... Re2 {[%clk 0:00:47.9]} 37. Rg1 {[%clk 0:00:13.2]} 37... Ne5
{[%clk 0:00:33.2]} 38. Bf1 {[%clk 0:00:12.3]} 38... Re1 {[%clk 0:00:22.2]} 39.
Rxg6 {[%clk 0:00:09.3]} 39... Nxg6 {[%clk 0:00:21.8]} 40. Qxd4 {[%clk
0:00:09.1]} 40... Rxf1+ {[%clk 0:00:21.3]} 41. Kg2 {[%clk 0:00:09.7]} 41... Rb1
{[%clk 0:00:22.2]} 42. h5 {[%clk 0:00:09.8]} 42... Nf8 {[%clk 0:00:18.5]} 43.
Qc5 {[%clk 0:00:08.6]} 43... Kg8 {[%clk 0:00:17.8]} 44. Qd5+ {[%clk 0:00:08.8]}
44... Kh8 {[%clk 0:00:18.1]} 45. Qxf5 {[%clk 0:00:09.3]} 45... Kg8 {[%clk
0:00:17.9]} 46. d4 {[%clk 0:00:09.7]} 46... Rb2+ {[%clk 0:00:17.6]} 47. Kg3
{[%clk 0:00:10.2]} 47... Rd2 {[%clk 0:00:16.7]} 48. b6 {[%clk 0:00:09.2]} 48...
Rxd4 {[%clk 0:00:16.5]} 49. b7 {[%clk 0:00:09.6]} 49... Rd8 {[%clk 0:00:16.9]}
50. Qc8 {[%clk 0:00:09.6]} 50... Ne6 {[%clk 0:00:15.7]} 51. Qxe6+ {[%clk
0:00:09.3]} 51... Kh8 {[%clk 0:00:16.1]} 52. Qc8 {[%clk 0:00:09.7]} 52... Rxc8
{[%clk 0:00:15.9]} 53. bxc8=Q+ {[%clk 0:00:10.6]} 53... Kh7 {[%clk 0:00:15.4]}
54. Qe8 {[%clk 0:00:11.2]} 54... Kh6 {[%clk 0:00:15.5]} 55. Qg6# {[%clk
0:00:11.3]} 1-0

[Event "*** Titled Tuesday Blitz"]
[Site "Chess.com"]
[Date "2020.04.07"]
[Round "3"]
[White "MFguimaraes"]
[Black "MartinCerveny"]
[Result "0-1"]
[WhiteElo "2403"]
[BlackElo "2630"]
[TimeControl "180+1"]
[EndTime "13:30:45 PDT"]
[Termination "MartinCerveny won by resignation"]

1. e4 {[%clk 0:03:00.9]} 1... c5 {[%clk 0:02:59.7]} 2. Nf3 {[%clk 0:03:01]} 2...
d6 {[%clk 0:03:00]} 3. Bb5+ {[%clk 0:02:59.9]} 3... Nd7 {[%clk 0:02:59.2]} 4. c3
{[%clk 0:02:59.6]} 4... Nf6 {[%clk 0:02:57.7]} 5. d3 {[%clk 0:02:59.3]} 5... g6
{[%clk 0:02:56.7]} 6. O-O {[%clk 0:02:59.4]} 6... Bg7 {[%clk 0:02:56.8]} 7. Nbd2
{[%clk 0:02:55.3]} 7... a6 {[%clk 0:02:54.3]} 8. Ba4 {[%clk 0:02:55.5]} 8... b5
{[%clk 0:02:54.1]} 9. Bc2 {[%clk 0:02:55.7]} 9... Bb7 {[%clk 0:02:54]} 10. Re1
{[%clk 0:02:53.9]} 10... e5 {[%clk 0:02:51.7]} 11. a4 {[%clk 0:02:53.5]} 11...
O-O {[%clk 0:02:42.7]} 12. h3 {[%clk 0:02:46.8]} 12... Qc7 {[%clk 0:02:39.7]}
13. Nf1 {[%clk 0:02:24.3]} 13... Rfe8 {[%clk 0:02:39]} 14. axb5 {[%clk 0:02:12]}
14... axb5 {[%clk 0:02:38.4]} 15. Rxa8 {[%clk 0:02:12.6]} 15... Bxa8 {[%clk
0:02:38.3]} 16. Bb3 {[%clk 0:02:10.4]} 16... c4 {[%clk 0:02:36.1]} 17. dxc4
{[%clk 0:02:10.2]} 17... bxc4 {[%clk 0:02:35.2]} 18. Bc2 {[%clk 0:02:08.2]}
18... Nc5 {[%clk 0:02:33.5]} 19. Ng3 {[%clk 0:02:06]} 19... h6 {[%clk
0:02:28.3]} 20. Nd2 {[%clk 0:01:54]} 20... Ne6 {[%clk 0:02:20.5]} 21. Qe2 {[%clk
0:01:50.3]} 21... Rc8 {[%clk 0:02:20.1]} 22. Ndf1 {[%clk 0:01:46.4]} 22... Bb7
{[%clk 0:02:11.4]} 23. Rd1 {[%clk 0:01:42.7]} 23... d5 {[%clk 0:02:00.4]} 24.
exd5 {[%clk 0:01:37.6]} 24... Nxd5 {[%clk 0:02:01.3]} 25. Be4 {[%clk 0:01:23.3]}
25... Ndf4 {[%clk 0:01:53.9]} 26. Qf3 {[%clk 0:01:17.2]} 26... Bxe4 {[%clk
0:01:47.9]} 27. Qxe4 {[%clk 0:01:12.5]} 27... f5 {[%clk 0:01:39.3]} 28. Qe1
{[%clk 0:01:03.1]} 28... e4 {[%clk 0:01:37.7]} 29. Bxf4 {[%clk 0:00:53.1]} 29...
Nxf4 {[%clk 0:01:38.5]} 30. Ne3 {[%clk 0:00:52.5]} 30... Nd3 {[%clk 0:01:35.8]}
31. Qe2 {[%clk 0:00:47.5]} 31... Qc6 {[%clk 0:01:19.7]} 32. Nexf5 {[%clk
0:00:39.2]} 32... gxf5 {[%clk 0:01:18.3]} 33. Nxf5 {[%clk 0:00:39.6]} 33... Qe6
{[%clk 0:00:51.5]} 34. Qg4 {[%clk 0:00:29.3]} 34... Rc7 {[%clk 0:00:45.6]} 35.
Rd2 {[%clk 0:00:26.4]} 35... Kh7 {[%clk 0:00:41.8]} 36. Re2 {[%clk 0:00:26.3]}
36... Qg6 {[%clk 0:00:36]} 37. Qxe4 {[%clk 0:00:19.1]} 37... Be5 {[%clk
0:00:27.1]} 38. h4 {[%clk 0:00:16.9]} 38... Ra7 {[%clk 0:00:25.9]} 39. g3 {[%clk
0:00:16.2]} 39... h5 {[%clk 0:00:17.2]} 40. Kh2 {[%clk 0:00:15.3]} 40... Bf6
{[%clk 0:00:16.9]} 41. b4 {[%clk 0:00:10.1]} 41... Ne5 {[%clk 0:00:16.4]} 42. f3
{[%clk 0:00:09]} 42... Rd7 {[%clk 0:00:14.5]} 43. Nd4 {[%clk 0:00:09.1]} 43...
Qxe4 {[%clk 0:00:11.8]} 44. Rxe4 {[%clk 0:00:09.3]} 44... Kg6 {[%clk 0:00:12.1]}
45. f4 {[%clk 0:00:09.7]} 45... Ng4+ {[%clk 0:00:11.3]} 46. Kg2 {[%clk
0:00:10.4]} 46... Bxd4 {[%clk 0:00:12.2]} 47. Rxd4 {[%clk 0:00:10.4]} 47... Rxd4
{[%clk 0:00:12.1]} 48. cxd4 {[%clk 0:00:11.3]} 48... Kf5 {[%clk 0:00:12.5]} 49.
b5 {[%clk 0:00:11.1]} 49... Ne3+ {[%clk 0:00:12.6]} 50. Kf3 {[%clk 0:00:10.2]}
50... Nd5 {[%clk 0:00:13.5]} 51. Ke2 {[%clk 0:00:09.3]} 51... Ke4 {[%clk
0:00:13.4]} 52. Kd2 {[%clk 0:00:08.3]} 52... Kxd4 {[%clk 0:00:13.5]} 53. f5
{[%clk 0:00:08.2]} 53... Ke5 {[%clk 0:00:13.8]} 54. g4 {[%clk 0:00:07.7]} 54...
hxg4 {[%clk 0:00:13.6]} 55. h5 {[%clk 0:00:08.6]} 55... Kxf5 {[%clk 0:00:13.9]}
0-1

[Event "*** Titled Tuesday Blitz"]
[Site "Chess.com"]
[Date "2020.04.07"]
[Round "3"]
[White "SerGo055"]
[Black "Fins0905"]
[Result "1-0"]
[WhiteElo "2531"]
[BlackElo "2729"]
[TimeControl "180+1"]
[EndTime "13:30:48 PDT"]
[Termination "SerGo055 won by resignation"]

1. d4 {[%clk 0:03:00.9]} 1... d5 {[%clk 0:02:58.2]} 2. Nf3 {[%clk 0:03:00.6]}
2... Nf6 {[%clk 0:02:55.5]} 3. c4 {[%clk 0:03:00.4]} 3... c6 {[%clk 0:02:54.9]}
4. Nc3 {[%clk 0:03:00.2]} 4... dxc4 {[%clk 0:02:54.5]} 5. a4 {[%clk 0:02:59.7]}
5... Bf5 {[%clk 0:02:54.1]} 6. e3 {[%clk 0:02:59.3]} 6... e6 {[%clk 0:02:54.3]}
7. Bxc4 {[%clk 0:02:59.5]} 7... Bb4 {[%clk 0:02:54.8]} 8. O-O {[%clk 0:02:58.8]}
8... Nbd7 {[%clk 0:02:54.6]} 9. Qb3 {[%clk 0:02:59]} 9... Qb6 {[%clk 0:02:38.8]}
10. e4 {[%clk 0:02:57.6]} 10... Bg4 {[%clk 0:02:29]} 11. Be3 {[%clk 0:02:52.3]}
11... Bxc3 {[%clk 0:02:11.9]} 12. Qxc3 {[%clk 0:02:18]} 12... Nxe4 {[%clk
0:02:06]} 13. Qc2 {[%clk 0:02:18]} 13... Bf5 {[%clk 0:02:05.7]} 14. Nh4 {[%clk
0:02:07.5]} 14... Nd6 {[%clk 0:02:02.1]} 15. Nxf5 {[%clk 0:02:05.1]} 15... Nxf5
{[%clk 0:02:03]} 16. Bd3 {[%clk 0:01:40.7]} 16... Nxe3 {[%clk 0:01:26.8]} 17.
fxe3 {[%clk 0:01:39.6]} 17... g6 {[%clk 0:01:25]} 18. a5 {[%clk 0:01:36.2]}
18... Qc7 {[%clk 0:01:22.4]} 19. a6 {[%clk 0:01:36.5]} 19... b6 {[%clk
0:01:18.8]} 20. Be4 {[%clk 0:01:35.7]} 20... Rc8 {[%clk 0:01:18.1]} 21. Rac1
{[%clk 0:01:34.6]} 21... c5 {[%clk 0:01:15.3]} 22. Bb7 {[%clk 0:01:32.5]} 22...
Rd8 {[%clk 0:01:14.8]} 23. b4 {[%clk 0:01:31.2]} 23... O-O {[%clk 0:01:06.5]}
24. bxc5 {[%clk 0:01:29.8]} 24... bxc5 {[%clk 0:01:06.8]} 25. dxc5 {[%clk
0:01:28.4]} 25... Ne5 {[%clk 0:01:07.1]} 26. c6 {[%clk 0:01:20.9]} 26... Rd5
{[%clk 0:01:04.5]} 27. Qe4 {[%clk 0:01:16.2]} 27... Rfd8 {[%clk 0:01:01.2]} 28.
Qf4 {[%clk 0:01:03.6]} 28... h5 {[%clk 0:00:56]} 29. h3 {[%clk 0:01:01.3]} 29...
Kg7 {[%clk 0:00:48]} 30. Rc4 {[%clk 0:00:33]} 30... Rd1 {[%clk 0:00:36.9]} 31.
Rc1 {[%clk 0:00:19.5]} 31... Rxc1 {[%clk 0:00:32]} 32. Rxc1 {[%clk 0:00:18.6]}
32... f6 {[%clk 0:00:30.2]} 33. Rf1 {[%clk 0:00:18.3]} 33... f5 {[%clk
0:00:27.7]} 34. Kh1 {[%clk 0:00:16.7]} 34... Rd2 {[%clk 0:00:22.6]} 35. Rc1
{[%clk 0:00:09.8]} 35... Kf6 {[%clk 0:00:18.1]} 36. Qh6 {[%clk 0:00:05.1]} 36...
Nf7 {[%clk 0:00:16.9]} 37. Qf4 {[%clk 0:00:05.1]} 37... Ne5 {[%clk 0:00:15]} 38.
Qh6 {[%clk 0:00:05.2]} 38... Nf7 {[%clk 0:00:14.2]} 39. Qf4 {[%clk 0:00:05.4]}
39... e5 {[%clk 0:00:13.5]} 40. Qb4 {[%clk 0:00:03.2]} 40... Rd6 {[%clk
0:00:10.9]} 41. Qc5 {[%clk 0:00:02.3]} 41... e4 {[%clk 0:00:08.3]} 42. Qxa7
{[%clk 0:00:02.3]} 42... Rd2 {[%clk 0:00:08.4]} 43. Qc5 {[%clk 0:00:01]} 43...
Qg3 {[%clk 0:00:07.6]} 44. Qc3+ {[%clk 0:00:01.2]} 44... Ne5 {[%clk 0:00:05.5]}
45. Qxd2 {[%clk 0:00:01.6]} 45... Nf3 {[%clk 0:00:05.1]} 46. gxf3 {[%clk
0:00:01.9]} 46... Qxf3+ {[%clk 0:00:05.7]} 47. Qg2 {[%clk 0:00:02.3]} 47... Qxe3
{[%clk 0:00:06.3]} 48. Rd1 {[%clk 0:00:02.6]} 48... f4 {[%clk 0:00:07]} 49. Rf1
{[%clk 0:00:02.9]} 49... f3 {[%clk 0:00:07.9]} 50. Qh2 {[%clk 0:00:03.3]} 50...
Kg7 {[%clk 0:00:08.4]} 51. Qg3 {[%clk 0:00:03.5]} 51... Qd3 {[%clk 0:00:08.9]}
52. Rg1 {[%clk 0:00:03.3]} 52... e3 {[%clk 0:00:08]} 53. Qxf3 {[%clk 0:00:03.7]}
53... Qd4 {[%clk 0:00:08.2]} 54. c7 {[%clk 0:00:03.6]} 54... e2 {[%clk
0:00:07.5]} 55. c8=Q {[%clk 0:00:04.2]} 55... Qxg1+ {[%clk 0:00:07.7]} 56. Kxg1
{[%clk 0:00:04.4]} 56... e1=Q+ {[%clk 0:00:08.6]} 57. Kg2 {[%clk 0:00:05.3]}
57... Qd2+ {[%clk 0:00:08.7]} 58. Qf2 {[%clk 0:00:05.9]} 58... Qg5+ {[%clk
0:00:07.5]} 59. Kh2 {[%clk 0:00:04.3]} 59... Qe5+ {[%clk 0:00:07.7]} 60. Kh1
{[%clk 0:00:04.8]} 60... Qa1+ {[%clk 0:00:07.3]} 61. Qg1 {[%clk 0:00:04.5]} 1-0

[Event "*** Titled Tuesday Blitz"]
[Site "Chess.com"]
[Date "2020.04.07"]
[Round "3"]
[White "Tormoz"]
[Black "Bigfish1995"]
[Result "0-1"]
[WhiteElo "2674"]
[BlackElo "2970"]
[TimeControl "180+1"]
[EndTime "13:30:49 PDT"]
[Termination "Bigfish1995 won on time"]

1. d4 {[%clk 0:03:00.9]} 1... Nf6 {[%clk 0:02:59.4]} 2. Nf3 {[%clk 0:02:58.5]}
2... d5 {[%clk 0:02:59.1]} 3. c4 {[%clk 0:02:56.6]} 3... c6 {[%clk 0:02:58.7]}
4. Nc3 {[%clk 0:02:53.1]} 4... e6 {[%clk 0:02:58.9]} 5. e3 {[%clk 0:02:47.8]}
5... Nbd7 {[%clk 0:02:52.6]} 6. Be2 {[%clk 0:02:45.5]} 6... Bd6 {[%clk
0:02:50.1]} 7. O-O {[%clk 0:02:45]} 7... O-O {[%clk 0:02:49.9]} 8. b3 {[%clk
0:02:45.3]} 8... b6 {[%clk 0:02:49.8]} 9. Bb2 {[%clk 0:02:45]} 9... Bb7 {[%clk
0:02:49.8]} 10. Rc1 {[%clk 0:02:44.1]} 10... Qe7 {[%clk 0:02:47.3]} 11. Re1
{[%clk 0:02:43.6]} 11... Rad8 {[%clk 0:02:40.1]} 12. Bf1 {[%clk 0:02:38.8]}
12... dxc4 {[%clk 0:02:35.4]} 13. Bxc4 {[%clk 0:02:29.3]} 13... c5 {[%clk
0:02:31.8]} 14. dxc5 {[%clk 0:02:23.7]} 14... Nxc5 {[%clk 0:02:28.3]} 15. Qe2
{[%clk 0:02:23.6]} 15... Ng4 {[%clk 0:02:26]} 16. e4 {[%clk 0:01:50.7]} 16... f5
{[%clk 0:02:01]} 17. exf5 {[%clk 0:01:32.4]} 17... Rxf5 {[%clk 0:01:48.6]} 18.
Bxe6+ {[%clk 0:01:05.1]} 18... Qxe6 {[%clk 0:01:46.8]} 19. Qxe6+ {[%clk
0:01:06]} 19... Nxe6 {[%clk 0:01:47.3]} 20. Rxe6 {[%clk 0:01:06.9]} 20... Bc5
{[%clk 0:01:37.1]} 21. Ne4 {[%clk 0:00:50.6]} 21... Bxe4 {[%clk 0:00:50.3]} 22.
Rxe4 {[%clk 0:00:51.5]} 22... Nxf2 {[%clk 0:00:16.8]} 23. Rxc5 {[%clk 0:00:46]}
23... Nxe4 {[%clk 0:00:16.1]} 24. Rxf5 {[%clk 0:00:46.2]} 24... Rd1+ {[%clk
0:00:16.5]} 25. Ne1 {[%clk 0:00:46.8]} 25... Rxe1+ {[%clk 0:00:17.1]} 26. Rf1
{[%clk 0:00:47.7]} 26... Re2 {[%clk 0:00:17.7]} 27. Bd4 {[%clk 0:00:36.1]} 27...
Rxa2 {[%clk 0:00:17.5]} 28. Rc1 {[%clk 0:00:36.2]} 28... Rd2 {[%clk 0:00:08.5]}
29. Ba1 {[%clk 0:00:35.7]} 29... Rd7 {[%clk 0:00:08.1]} 30. b4 {[%clk
0:00:30.1]} 30... Kf7 {[%clk 0:00:07.9]} 31. g3 {[%clk 0:00:22.8]} 31... Ke6
{[%clk 0:00:07.4]} 32. Kg2 {[%clk 0:00:23.1]} 32... Nd6 {[%clk 0:00:02.8]} 33.
Rd1 {[%clk 0:00:19.4]} 33... g6 {[%clk 0:00:02.5]} 34. Kf3 {[%clk 0:00:16.3]}
34... Nc4 {[%clk 0:00:02.7]} 35. Re1+ {[%clk 0:00:16.3]} 35... Kd5 {[%clk
0:00:02.7]} 36. Kf4 {[%clk 0:00:13]} 36... Rf7+ {[%clk 0:00:02.3]} 37. Kg4
{[%clk 0:00:11.3]} 37... Nd6 {[%clk 0:00:01.4]} 38. Rd1+ {[%clk 0:00:11.1]}
38... Kc6 {[%clk 0:00:01.4]} 39. Be5 {[%clk 0:00:11.1]} 39... Ne4 {[%clk
0:00:01.5]} 40. Re1 {[%clk 0:00:08.6]} 40... Nf2+ {[%clk 0:00:01.5]} 41. Kh4
{[%clk 0:00:06.8]} 41... Nd3 {[%clk 0:00:02.4]} 42. Re3 {[%clk 0:00:06.5]} 42...
Nxe5 {[%clk 0:00:02.6]} 43. Rxe5 {[%clk 0:00:07.4]} 43... b5 {[%clk 0:00:03]}
44. Rc5+ {[%clk 0:00:07.3]} 44... Kb6 {[%clk 0:00:03]} 45. Kg5 {[%clk
0:00:07.9]} 45... a5 {[%clk 0:00:02.1]} 46. Rc1 {[%clk 0:00:07.3]} 46... axb4
{[%clk 0:00:03]} 47. Rb1 {[%clk 0:00:07.8]} 47... Kc5 {[%clk 0:00:03.4]} 0-1

[Event "*** Titled Tuesday Blitz"]
[Site "Chess.com"]
[Date "2020.04.07"]
[Round "3"]
[White "Malev212"]
[Black "VladDobrov"]
[Result "0-1"]
[WhiteElo "2627"]
[BlackElo "2870"]
[TimeControl "180+1"]
[EndTime "13:30:50 PDT"]
[Termination "VladDobrov won on time"]

1. d4 {[%clk 0:03:00.9]} 1... Nf6 {[%clk 0:02:59.1]} 2. c4 {[%clk 0:02:50.8]}
2... e6 {[%clk 0:02:59.1]} 3. Nc3 {[%clk 0:02:49.3]} 3... Bb4 {[%clk 0:02:58]}
4. a3 {[%clk 0:02:49.1]} 4... Bxc3+ {[%clk 0:02:57.4]} 5. bxc3 {[%clk
0:02:48.3]} 5... d5 {[%clk 0:02:53.2]} 6. cxd5 {[%clk 0:02:44.7]} 6... Qxd5
{[%clk 0:02:51.1]} 7. f3 {[%clk 0:02:33.4]} 7... c5 {[%clk 0:02:36.4]} 8. e4
{[%clk 0:02:32.1]} 8... Qc6 {[%clk 0:02:36.3]} 9. Be3 {[%clk 0:02:16.7]} 9...
O-O {[%clk 0:02:33.8]} 10. a4 {[%clk 0:01:55.6]} 10... Nbd7 {[%clk 0:02:12.1]}
11. Bb5 {[%clk 0:01:47.9]} 11... Qc7 {[%clk 0:02:12.1]} 12. Ne2 {[%clk
0:01:46.8]} 12... b6 {[%clk 0:01:34.3]} 13. O-O {[%clk 0:01:45.3]} 13... Bb7
{[%clk 0:01:34.8]} 14. a5 {[%clk 0:01:40.2]} 14... Rfd8 {[%clk 0:01:30.5]} 15.
Qa4 {[%clk 0:01:33.2]} 15... a6 {[%clk 0:01:28]} 16. Bxd7 {[%clk 0:01:31]} 16...
Nxd7 {[%clk 0:01:28.9]} 17. axb6 {[%clk 0:01:29.7]} 17... Nxb6 {[%clk
0:01:29.8]} 18. Qa5 {[%clk 0:01:26.5]} 18... Qc6 {[%clk 0:01:18.7]} 19. Qxc5
{[%clk 0:01:19.7]} 19... Qxc5 {[%clk 0:01:19]} 20. dxc5 {[%clk 0:01:19.4]} 20...
Nc4 {[%clk 0:01:19.9]} 21. Bf2 {[%clk 0:01:18.1]} 21... e5 {[%clk 0:01:20]} 22.
Ra4 {[%clk 0:01:07.9]} 22... Nd2 {[%clk 0:01:16.6]} 23. Re1 {[%clk 0:01:01.3]}
23... Bc6 {[%clk 0:01:16.7]} 24. Ra2 {[%clk 0:00:50.2]} 24... Nc4 {[%clk
0:01:16.3]} 25. Ng3 {[%clk 0:00:44.4]} 25... g6 {[%clk 0:01:15.8]} 26. Nf1
{[%clk 0:00:41.7]} 26... Rd3 {[%clk 0:01:05.1]} 27. Ne3 {[%clk 0:00:37.3]} 27...
Rxc3 {[%clk 0:01:05.1]} 28. Nd5 {[%clk 0:00:36.1]} 28... Bxd5 {[%clk 0:00:55.2]}
29. exd5 {[%clk 0:00:35.8]} 29... Rd8 {[%clk 0:00:55]} 30. d6 {[%clk 0:00:34.1]}
30... a5 {[%clk 0:00:55.4]} 31. Rb1 {[%clk 0:00:29.9]} 31... f5 {[%clk
0:00:46.3]} 32. h4 {[%clk 0:00:28.9]} 32... e4 {[%clk 0:00:46.5]} 33. fxe4
{[%clk 0:00:27.3]} 33... fxe4 {[%clk 0:00:47.4]} 34. Bd4 {[%clk 0:00:26.1]}
34... Rd3 {[%clk 0:00:47.7]} 35. Bf6 {[%clk 0:00:25.5]} 35... Rc8 {[%clk
0:00:45.4]} 36. Rb7 {[%clk 0:00:23.7]} 36... Rxc5 {[%clk 0:00:34.8]} 37. d7
{[%clk 0:00:22]} 37... Rcd5 {[%clk 0:00:25.1]} 38. Rb8+ {[%clk 0:00:21.6]} 38...
Kf7 {[%clk 0:00:25.4]} 39. d8=Q {[%clk 0:00:22.1]} 39... Rxd8 {[%clk 0:00:26]}
40. Bxd8 {[%clk 0:00:19.7]} 40... e3 {[%clk 0:00:25.9]} 41. Bxa5 {[%clk
0:00:19.2]} 41... Nxa5 {[%clk 0:00:24.9]} 42. Kf1 {[%clk 0:00:13.8]} 42... Nc4
{[%clk 0:00:23.2]} 43. Ke2 {[%clk 0:00:13.5]} 43... Rc3 {[%clk 0:00:23.5]} 44.
Rc8 {[%clk 0:00:12.3]} 44... Ke6 {[%clk 0:00:23.9]} 45. Rc5 {[%clk 0:00:07.3]}
45... Kd6 {[%clk 0:00:23.9]} 46. Rc8 {[%clk 0:00:06.5]} 46... Kd5 {[%clk
0:00:24]} 47. Ra7 {[%clk 0:00:03.6]} 47... Rc2+ {[%clk 0:00:23.8]} 48. Ke1
{[%clk 0:00:03]} 48... Ke4 {[%clk 0:00:13.9]} 49. Re8+ {[%clk 0:00:01.3]} 49...
Kf4 {[%clk 0:00:13.9]} 0-1